bitfinex-derivatives/quotes_SOLF0:USTF0_20250719
["timestamp","ask_amount","ask_price","bid_price","bid_amount"]
[1752920848531,8.6634,177.1,177.09,0.03669041]
[1752920849739,8.6634,177.1,177.09,3.10669041]
[1752920850837,3.02,177.1,177.09,3.10669041]
[1752920851740,8.6634,177.1,177.09,3.10669041]
[1752920851934,3.02,177.1,177.09,3.10669041]
[1752920854137,3.02,177.1,177.09,8.75039041]
[1752920856536,3.02,177.1,177.09,3.10669041]
[1752920857837,3.02,177.1,177.09,8.75039041]
[1752920863038,4.43400011,177.1,177.09,8.75039041]
[1752920864036,10.07740011,177.1,177.09,0.03669041]
[1752920866943,5.6447,177.06,177.05,3.15]
[1752920867143,4.70400011,177.06,177.05,3.15]
[1752920869050,3.29,177.06,177.05,3.15]
[1752920869954,8.9347,177.06,177.05,3.15]
[1752920870253,3.29,177.05,177.03,3.15]
[1752920870552,3.29,177.05,177.04,4.46155785]
[1752920870853,3.29,177.04,177.03,8.7956]
[1752920871543,3.29,177.04,177.03,5.6456]
[1752920871745,3.29,177.04,177.03,8.7956]
[1752920873656,3.29,177.06,177.03,3.15]
[1752920874558,3.29,177.06,177.05,8.7947]
[1752920876858,3.29,177.06,177.05,3.15]
[1752920877155,3.29,177.06,177.04,8.7952]
[1752920878354,5.6447,177.06,177.04,5.6452]
[1752920878557,3.29,177.05,177.04,5.6452]
[1752920878752,3.29,177.05,177.04,10.11607309]
[1752920879354,5.5005481,177.05,177.02,3.15]
[1752920879550,3.29,177.04,177.03,4.47252114]
[1752920879748,3.29,177.04,177.03,7.62252114]
[1752920879952,3.29,177.04,177.03,13.26792114]
[1752920881561,2.2465377,177.07,177.04,3.15]
[1752920881860,2.2465377,177.07,177.05,4.46990936]
[1752920881861,5.5365377,177.07,177.05,4.46990936]
[1752920882054,3.3259896,177.07,177.04,3.15]
[1752920882255,3.3259896,177.07,177.06,8.7947]
[1752920882456,0.0359896,177.07,177.06,13.2642543]
[1752920882650,5.5005481,177.1,177.09,5.6437]
[1752920882858,5.5005481,177.1,177.09,8.7937]
[1752920883258,3.29,177.1,177.09,8.7937]
[1752920883451,3.29,177.11,177.09,8.7937]
[1752920883651,3.29,177.1,177.09,5.6437]
[1752920884261,2.2105481,177.1,177.08,5.68014545]
[1752920884460,3.29,177.09,177.08,5.68014545]
[1752920884657,3.29,177.09,177.08,4.50528729]
[1752920884956,3.29,177.09,177.08,0.03624545]
[1752920885852,8.9337,177.09,177.08,0.03624545]
[1752920888961,3.29,177.09,177.08,3.33624545]
[1752920889865,3.29,177.09,177.08,8.98024545]
[1752920890168,3.15,177.1,177.09,3.3]
[1752920890364,3.15,177.1,177.09,7.77104837]
[1752920891765,3.15,177.1,177.09,13.41454837]
[1752920892169,0.98275935,177.18,177.09,7.77104837]
[1752920892358,3.15,177.13,177.12,3.3]
[1752920892866,3.15,177.13,177.11,8.9787325]
[1752920894665,3.15,177.12,177.11,8.9787325]
[1752920894866,3.15,177.12,177.11,13.44810257]
[1752920895667,3.15,177.12,177.11,13.44771342]
[1752920897168,3.15,177.12,177.11,7.80471342]
[1752920897966,3.15,177.12,177.11,4.50471342]
[1752920898268,8.7928,177.12,177.11,4.50471342]
[1752920899270,8.7928,177.12,177.11,3.3357325]
[1752920901870,11.0033481,177.12,177.11,0.0357325]
[1752920920894,10.20706337,177.12,177.11,0.0357325]
[1752920922095,10.20706337,177.12,177.11,3.1557325]
[1752920923497,10.20706337,177.12,177.11,0.0357325]
[1752920927993,10.20706337,177.12,177.11,3.1557325]
[1752920928295,10.20706337,177.12,177.11,0.0357325]
[1752920945604,8.7928,177.12,177.11,0.0357325]
[1752920945903,10.20706337,177.12,177.11,0.0357325]
[1752920946405,10.20706337,177.12,177.11,3.0657325]
[1752920946605,10.20706337,177.12,177.11,4.51025056]
[1752920947004,10.20706337,177.12,177.11,0.0357325]
[1752920949306,10.20706337,177.12,177.11,7.53889039]
[1752920950111,10.20706337,177.12,177.11,4.50889039]
[1752920951009,10.20706337,177.12,177.11,7.53889039]
[1752920955014,10.20706337,177.12,177.11,4.50889039]
[1752920956414,10.20706337,177.12,177.11,7.53889039]
[1752920958116,8.7928,177.12,177.11,7.53889039]
[1752920958418,10.20706337,177.12,177.11,7.53889039]
[1752920959615,5.6425,177.13,177.11,4.50889039]
[1752920959817,1.41426337,177.13,177.12,3.03]
[1752920960121,1.41426337,177.13,177.12,7.5025963]
[1752920960922,1.41426337,177.13,177.12,13.14303719]
[1752920961423,7.05666337,177.13,177.12,13.14303719]
[1752920963623,1.41426337,177.13,177.12,13.14303719]
[1752920964324,7.05666337,177.13,177.12,13.14303719]
[1752920964724,5.6424,177.13,177.12,13.14303719]
[1752920964926,7.05666337,177.13,177.12,13.14303719]
[1752920966427,10.06666337,177.13,177.12,13.14303719]
[1752920969933,8.6524,177.13,177.12,13.14303719]
[1752920970232,10.06666337,177.13,177.12,13.14303719]
[1752920973034,10.06666337,177.13,177.12,10.11303719]
[1752920973237,10.06666337,177.13,177.12,5.63489228]
[1752920974436,5.6428,177.12,177.11,0.0357325]
[1752920974635,10.06706337,177.12,177.11,0.0357325]
[1752920981536,10.06706337,177.12,177.11,3.0557325]
[1752920987044,10.06706337,177.12,177.11,0.0357325]
[1752920987542,10.06706337,177.12,177.11,3.0557325]
[1752920988045,10.06706337,177.12,177.11,7.53926667]
[1752920988543,10.06706337,177.12,177.11,0.0357325]
[1752920993049,10.06706337,177.12,177.11,5.67747976]
[1752920994249,10.06706337,177.12,177.11,8.69747976]
[1752920997155,8.6528,177.12,177.11,8.69747976]
[1752920997353,10.06706337,177.12,177.11,8.69747976]
[1752920998451,10.06706337,177.12,177.11,8.73986038]
[1752920998649,8.6528,177.12,177.11,8.73986038]
[1752920998948,10.06706337,177.12,177.11,8.73986038]
[1752921000853,10.06706337,177.12,177.11,5.71986038]
[1752921003046,10.06706337,177.12,177.11,8.73986038]
[1752921003356,10.06706337,177.12,177.11,8.73570854]
[1752921006158,10.06706337,177.12,177.11,8.73555528]
[1752921008557,10.06706337,177.12,177.11,5.71555528]
[1752921011555,10.06706337,177.12,177.11,8.91555528]
[1752921011856,10.06706337,177.12,177.11,8.91731492]
[1752921013160,10.06706337,177.12,177.11,13.39935425]
[1752921016459,10.06706337,177.12,177.11,10.19935425]
[1752921021265,10.06706337,177.12,177.11,13.39935425]
[1752921022659,10.06706337,177.12,177.11,10.19935425]
[1752921024565,10.06706337,177.12,177.11,13.39935425]
[1752921026764,10.06706337,177.12,177.11,10.19935425]
[1752921030176,10.06706337,177.12,177.11,13.39935425]
[1752921031870,10.06706337,177.12,177.11,7.71777183]
[1752921032074,10.06706337,177.12,177.11,13.42482444]
[1752921033366,5.6428,177.12,177.11,13.42482444]
[1752921033572,7.05706337,177.12,177.11,13.42482444]
[1752921038479,10.37706337,177.12,177.11,13.42482444]
[1752921041278,10.37706337,177.12,177.11,10.22482444]
[1752921042884,10.37706337,177.12,177.11,13.46482444]
[1752921049079,10.37706337,177.12,177.11,10.22482444]
[1752921050391,10.37706337,177.12,177.11,13.46482444]
[1752921050591,10.37706337,177.12,177.11,10.22482444]
[1752921051290,10.37706337,177.12,177.11,13.46482444]
[1752921052092,10.37706337,177.12,177.11,13.34054999]
[1752921052593,10.37706337,177.12,177.11,13.34055118]
[1752921053993,10.37706337,177.12,177.11,7.75777183]
[1752921055593,10.37706337,177.12,177.11,4.51777183]
[1752921057192,10.37706337,177.12,177.11,7.75777183]
[1752921060092,8.9628,177.12,177.11,7.75777183]
[1752921060297,10.37706337,177.12,177.11,7.75777183]
[1752921062406,5.6425,177.13,177.11,4.51777183]
[1752921062606,5.6425,177.13,177.12,7.72203933]
[1752921062807,7.05676337,177.13,177.12,7.72203933]
[1752921065010,7.05676337,177.13,177.12,7.73254906]
[1752921066010,3.3,177.18,177.13,3.28]
[1752921066206,1.41426337,177.16,177.13,3.28]
[1752921066512,4.71426337,177.16,177.13,3.28]
[1752921067412,5.642,177.15,177.13,3.28]
[1752921068810,8.942,177.15,177.13,3.28]
[1752921069010,5.642,177.15,177.13,3.28]
[1752921069212,10.35636337,177.14,177.13,3.28]
[1752921069414,10.35636337,177.14,177.13,7.7700618]
[1752921070307,8.9421,177.14,177.13,7.7700618]
[1752921070514,5.6421,177.14,177.13,7.7700618]
[1752921071916,8.9421,177.14,177.13,7.7700618]
[1752921073309,10.35636337,177.14,177.13,7.7700618]
[1752921074214,10.35636337,177.14,177.13,4.4900618]
[1752921074617,10.35636337,177.14,177.13,7.7700618]
[1752921074814,5.6428,177.12,177.11,3.3157325]
[1752921075015,10.35706337,177.12,177.11,7.80479569]
[1752921080722,10.35706337,177.12,177.11,4.52479569]
[1752921082224,10.35706337,177.12,177.11,0.0357325]
[1752921088629,10.35706337,177.12,177.11,3.3157325]
[1752921088831,10.35706337,177.12,177.11,0.0357325]
[1752921098238,10.35706337,177.12,177.11,3.2757325]
[1752921099832,7.05676337,177.13,177.11,7.76055552]
[1752921100037,7.05676337,177.13,177.12,7.72482302]
[1752921100240,1.41426337,177.14,177.12,4.48482302]
[1752921100437,7.05656337,177.14,177.13,7.72339085]
[1752921102142,5.6423,177.14,177.13,7.72339085]
[1752921102541,1.41426337,177.15,177.13,7.72339085]
[1752921102542,7.05616337,177.15,177.13,7.72339085]
[1752921102741,5.6419,177.15,177.14,4.48339085]
[1752921102937,5.6419,177.15,177.14,7.72339085]
[1752921110654,4.43426337,177.16,177.14,13.36549085]
[1752921110856,1.41426337,177.16,177.15,7.71537197]
[1752921111357,4.43426337,177.17,177.15,7.71537197]
[1752921111557,4.43426337,177.17,177.16,3.24]
[1752921112758,1.41426337,177.17,177.16,3.24]
[1752921113159,10.07546337,177.17,177.16,3.24]
[1752921120658,5.6415,177.16,177.15,3.27578737]
[1752921120860,10.07576337,177.16,177.15,0.03578737]
[1752921121263,10.07576337,177.16,177.15,3.27578737]
[1752921125365,8.6615,177.16,177.15,3.27578737]
[1752921125566,10.07576337,177.16,177.15,3.27578737]
[1752921127268,8.6615,177.16,177.15,3.27578737]
[1752921127568,10.07576337,177.16,177.15,3.27578737]
[1752921128570,8.6615,177.16,177.15,3.27578737]
[1752921128874,10.07576337,177.16,177.15,3.27578737]
[1752921137174,10.07576337,177.16,177.15,7.74317804]
[1752921147378,10.07576337,177.16,177.15,4.50317804]
[1752921150684,10.07576337,177.16,177.15,7.78317804]
[1752921154783,10.07576337,177.16,177.15,4.50317804]
[1752921155685,3.02,177.16,177.15,7.60317804]
[1752921156484,8.6615,177.16,177.15,7.60317804]
[1752921178407,1.41426337,177.17,177.16,3.1]
[1752921178706,1.41426337,177.17,177.16,7.56739067]
[1752921179911,7.05546337,177.17,177.16,7.56739067]
[1752921181712,10.13536337,177.18,177.17,3.1]
[1752921182010,10.13536337,177.18,177.17,7.56739067]
[1752921183214,8.7211,177.18,177.17,7.56739067]
[1752921183409,10.13536337,177.18,177.17,7.56739067]
[1752921200333,8.7211,177.18,177.17,7.56739067]
[1752921205732,10.13536337,177.18,177.17,7.56739067]
[1752921205933,8.7211,177.18,177.17,7.56739067]
[1752921206134,10.13536337,177.18,177.17,7.56739067]
[1752921206739,8.7211,177.18,177.17,7.56739067]
[1752921207037,10.13536337,177.18,177.17,7.56739067]
[1752921207243,8.7211,177.18,177.17,7.56739067]
[1752921207839,3.08,177.18,177.17,7.56739067]
[1752921210043,8.7208,177.18,177.17,7.56739067]
[1752921215344,10.13506337,177.18,177.17,7.56739067]
[1752921218247,10.13506337,177.18,177.17,7.58815247]
[1752921218444,5.6408,177.18,177.17,7.58815247]
[1752921218655,10.18506337,177.18,177.17,7.58815247]
[1752921219951,8.7715,177.16,177.15,0.03578737]
[1752921220154,4.54426337,177.16,177.12,3.13]
[1752921220347,4.54426337,177.13,177.12,3.13]
[1752921222051,10.18666337,177.13,177.12,3.13]
[1752921224851,10.18666337,177.13,177.1,5.6432]
[1752921224852,8.7731,177.11,177.1,3.13]
[1752921225046,10.18736337,177.11,177.1,3.13]
[1752921226854,1.41426337,177.11,177.1,3.13]
[1752921228351,1.41426337,177.11,177.1,8.7733]
[1752921228755,1.41426337,177.11,177.1,3.13]
[1752921229751,7.05736337,177.11,177.1,3.13]
[1752921229952,10.18736337,177.11,177.1,3.13]
[1752921231157,4.54426337,177.11,177.1,3.13]
[1752921231454,1.41426337,177.11,177.1,3.13]
[1752921231955,1.41426337,177.11,177.1,7.58643648]
[1752921232858,1.41426337,177.11,177.1,13.22983648]
[1752921238867,1.41426337,177.11,177.1,7.58643648]
[1752921239468,4.54426337,177.11,177.1,7.58643648]
[1752921239966,10.18736337,177.11,177.1,7.58643648]
[1752921242770,1.41426337,177.11,177.1,13.22983648]
[1752921242966,7.05716337,177.12,177.11,3.13]
[1752921243267,7.05716337,177.12,177.11,7.58643648]
[1752921243469,10.18716337,177.12,177.11,7.58643648]
[1752921244269,10.18716337,177.12,177.11,7.58099402]
[1752921245570,4.54426337,177.12,177.11,7.58099402]
[1752921246470,1.41426337,177.12,177.11,7.58099402]
[1752921246770,10.13706337,177.12,177.11,7.58099402]
[1752921248970,4.49426337,177.12,177.11,7.58099402]
[1752921249969,10.13706337,177.12,177.11,7.58099402]
[1752921256276,1.41426337,177.12,177.11,7.58099402]
[1752921256875,4.49426337,177.12,177.11,7.58099402]
[1752921261177,3.08,177.12,177.11,7.58099402]
[1752921261578,4.49426337,177.12,177.11,7.58099402]
[1752921262880,3.08,177.12,177.11,7.58099402]
[1752921263182,4.49426337,177.12,177.11,7.58099402]
[1752921268481,10.13706337,177.12,177.11,7.58099402]
[1752921271886,10.13706337,177.12,177.11,4.45099402]
[1752921273183,10.13706337,177.12,177.11,7.70099402]
[1752921274993,8.7228,177.12,177.11,7.70099402]
[1752921275285,10.13706337,177.12,177.11,7.70099402]
[1752921276293,4.49426337,177.12,177.11,7.70099402]
[1752921277890,10.13706337,177.12,177.11,7.70099402]
[1752921279391,4.49426337,177.12,177.11,7.70099402]
[1752921279990,1.41426337,177.12,177.11,7.70099402]
[1752921280392,4.45426337,177.12,177.11,7.70099402]
[1752921281894,1.41426337,177.12,177.11,7.70099402]
[1752921282692,4.45426337,177.12,177.11,7.70099402]
[1752921287601,4.45426337,177.12,177.11,12.43474941]
[1752921289201,4.45426337,177.12,177.11,7.70099402]
[1752921291904,10.09706337,177.12,177.11,7.70099402]
[1752921296808,4.45426337,177.12,177.11,7.70099402]
[1752921304014,4.45426337,177.12,177.11,13.34409402]
[1752921304517,0.03599484,177.14,177.13,8.9224]
[1752921304719,1.41426337,177.16,177.13,8.9224]
[1752921304720,4.45426337,177.16,177.13,13.89536641]
[1752921304917,3.04,177.17,177.16,5.6415]
[1752921305115,3.04,177.17,177.16,13.40249402]
[1752921305512,92.0099391,177.18,177.17,5.6412]
[1752921305715,4.69426337,177.19,177.18,3.31]
[1752921306014,4.69426337,177.19,177.18,13.42145866]
[1752921309922,10.33476337,177.19,177.18,13.42145866]
[1752921311122,10.33476337,177.19,177.18,8.97046464]
[1752921311913,4.69426337,177.19,177.18,14.61126464]
[1752921313419,4.69426337,177.19,177.18,13.42585828]
[1752921313825,10.33476337,177.19,177.18,5.66046464]
[1752921314525,10.33476337,177.19,177.18,8.97046464]
[1752921316933,10.33476337,177.19,177.18,8.91478934]
[1752921321838,4.69426337,177.19,177.18,8.91478934]
[1752921322930,10.33476337,177.19,177.18,8.91478934]
[1752921326637,4.69426337,177.19,177.18,8.91478934]
[1752921330834,5.6404,177.2,177.18,14.55558934]
[1752921331035,1.41426337,177.19,177.18,5.6408]
[1752921331236,1.41426337,177.19,177.18,11.23947404]
[1752921331533,4.69426337,177.19,177.18,14.54947404]
[1752921339140,4.69426337,177.19,177.18,18.99447971]
[1752921342043,5.6395,177.23,177.2,5.64]
[1752921342255,11.2747,177.3,177.2,5.64]
[1752921342256,3.07,177.22,177.2,5.64]
[1752921342445,3.07,177.22,177.21,3.1]
[1752921342642,4.48426337,177.22,177.21,3.1]
[1752921345246,4.48426337,177.22,177.21,8.70607311]
[1752921346748,10.12386337,177.22,177.21,8.70607311]
[1752921351255,8.7096,177.22,177.21,8.70607311]
[1752921351456,10.12386337,177.22,177.21,8.70607311]
[1752921353050,3.07,177.22,177.21,14.34597311]
[1752921353255,4.48426337,177.22,177.21,14.34597311]
[1752921354950,8.7094,177.23,177.21,11.24597311]
[1752921355152,1.41426337,177.22,177.21,5.6399]
[1752921355355,1.41426337,177.22,177.21,11.25600186]
[1752921355555,1.41426337,177.22,177.21,14.35600186]
[1752921355961,1.41426337,177.22,177.21,11.25600186]
[1752921356461,1.41426337,177.22,177.21,14.35600186]
[1752921357860,8.7094,177.23,177.21,14.35600186]
[1752921358065,8.7094,177.23,177.22,3.1]
[1752921358364,10.12366337,177.23,177.22,3.1]
[1752921359161,8.7094,177.23,177.22,3.1]
[1752921359365,10.12366337,177.23,177.22,3.1]
[1752921359668,10.12366337,177.23,177.22,8.73698291]
[1752921360161,3.07,177.3,177.22,8.73698291]
[1752921360368,1.41426337,177.26,177.23,5.63599593]
[1752921360662,4.48426337,177.25,177.24,8.73599593]
[1752921361566,4.48426337,177.25,177.24,14.37489593]
[1752921363868,3.07,177.25,177.24,18.83064592]
[1752921364260,3.07,177.25,177.24,13.19174592]
[1752921366475,3.07,177.25,177.24,8.73599593]
[1752921366869,3.07,177.25,177.24,13.18766605]
[1752921367168,8.7086,177.25,177.24,13.18766605]
[1752921368670,3.07,177.25,177.24,13.18766605]
[1752921368871,10.31266337,177.26,177.25,3.03]
[1752921369071,10.31266337,177.26,177.25,8.66599593]
[1752921370073,3.26,177.26,177.25,8.66599593]
[1752921370573,5.6381,177.27,177.25,8.66599593]
[1752921370766,8.8981,177.27,177.25,8.6685]
[1752921370971,8.8981,177.27,177.26,3.03]
[1752921374276,3.26,177.28,177.27,3.03]
[1752921376778,8.8977,177.28,177.27,3.03]
[1752921376970,10.31196337,177.28,177.27,3.03]
[1752921377273,8.8977,177.28,177.27,3.03]
[1752921379976,10.31196337,177.28,177.27,3.03]
[1752921380284,8.8977,177.28,177.27,3.03]
[1752921381386,8.8975,177.29,177.27,3.03]
[1752921381685,10.31176337,177.29,177.27,3.03]
[1752921382186,8.8975,177.29,177.27,3.03]
[1752921383376,3.26,177.28,177.27,3.03]
[1752921389192,3.26,177.28,177.27,10.08226337]
[1752921389590,3.26,177.29,177.28,3.03]
[1752921389791,3.26,177.29,177.28,4.44426337]
[1752921390189,3.26,177.29,177.28,8.6677]
[1752921390387,3.26,177.29,177.28,4.44426337]
[1752921390894,3.26,177.29,177.28,3.03]
[1752921391691,3.26,177.29,177.28,8.6677]
[1752921393093,8.8973,177.29,177.28,3.03]
[1752921393897,3.26,177.29,177.28,3.03]
[1752921394690,3.26,177.28,177.23,3.03]
[1752921394997,3.26,177.25,177.24,8.64109094]
[1752921395192,8.8986,177.25,177.24,8.64109094]
[1752921395496,10.31286337,177.25,177.24,8.64109094]
[1752921396500,10.31286337,177.25,177.24,5.61109094]
[1752921397102,5.6389,177.24,177.23,3.27]
[1752921397307,8.8789,177.24,177.23,13.32538718]
[1752921398800,10.29316337,177.24,177.23,13.32538718]
[1752921400102,8.8789,177.24,177.23,13.32538718]
[1752921400701,3.24,177.24,177.23,18.96468718]
[1752921401103,3.24,177.28,177.24,3.27]
[1752921401399,3.24,177.28,177.27,3.27]
[1752921401597,3.24,177.28,177.27,8.88420776]
[1752921402505,3.24,177.29,177.28,8.9076]
[1752921402704,3.24,177.29,177.28,14.52180776]
[1752921402906,3.24,177.3,177.29,3.27]
[1752921403097,3.24,177.3,177.29,8.88420776]
[1752921403301,3.24,177.3,177.29,14.52140776]
[1752921404306,3.24,177.3,177.29,18.97141142]
[1752921407410,7.05086337,177.32,177.29,18.97141142]
[1752921407608,7.05036337,177.33,177.3,14.52120776]
[1752921407911,3.24,177.32,177.31,8.88420776]
[1752921408512,3.24,177.33,177.31,11.25090776]
[1752921408711,3.24,177.33,177.32,3.27]
[1752921408911,3.24,177.33,177.32,8.88752499]
[1752921409714,4.65426337,177.35,177.32,7.03178836]
[1752921409912,3.24,177.36,177.34,3.27]
[1752921410109,1.41426337,177.37,177.34,3.27]
[1752921410417,3.24,177.35,177.34,3.27]
[1752921410708,3.24,177.37,177.35,3.27]
[1752921410910,3.24,177.37,177.36,3.27]
[1752921411109,4.65426337,177.37,177.36,3.27]
[1752921411706,10.28906337,177.37,177.36,3.27]
[1752921412114,8.8748,177.37,177.36,3.27]
[1752921412613,10.28906337,177.37,177.36,3.27]
[1752921413507,5.6354,177.36,177.34,0.03637349]
[1752921413812,8.8754,177.36,177.35,3.27]
[1752921414809,5.6346,177.38,177.35,3.27]
[1752921415015,1.41426337,177.41,177.37,1.41426337]
[1752921415214,1.41426337,177.41,177.38,3.27]
[1752921415413,10.28796337,177.41,177.39,3.27]
[1752921415816,3.24,177.4,177.39,3.27]
[1752921416319,8.8739,177.4,177.39,3.27]
[1752921416517,8.8739,177.4,177.37,7.04896337]
[1752921416518,5.6339,177.4,177.38,3.27]
[1752921416817,3.24,177.39,177.38,8.9045]
[1752921417114,0.98116612,177.47,177.38,8.9045]
[1752921417318,3.24,177.4,177.39,3.27]
[1752921417922,3.24,177.41,177.39,3.27]
[1752921418218,3.24,177.41,177.4,3.27]
[1752921418416,4.65426337,177.41,177.4,3.27]
[1752921418619,3.24,177.4,177.38,3.27]
[1752921418818,3.24,177.39,177.38,3.27]
[1752921419520,4.65426337,177.39,177.38,3.27]
[1752921420221,3.24,177.38,177.36,3.27]
[1752921420618,4.65426337,177.37,177.36,3.27]
[1752921421014,3.24,177.37,177.35,3.27]
[1752921421218,8.8751,177.36,177.35,3.27]
[1752921421423,3.24,177.35,177.34,3.27]
[1752921422424,8.8754,177.35,177.34,3.27]
[1752921424723,3.24,177.35,177.34,3.27]
[1752921427525,3.24,177.35,177.34,8.9058]
[1752921428821,3.24,177.35,177.34,3.27]
[1752921429822,8.8754,177.35,177.34,3.27]
[1752921430027,3.06,177.34,177.33,3.15589984]
[1752921431725,8.6958,177.34,177.33,3.15589984]
[1752921432325,3.06,177.34,177.33,3.15589984]
[1752921433221,8.6958,177.34,177.33,3.15589984]
[1752921440931,10.1062267,177.34,177.33,3.15589984]
[1752921444129,10.1062267,177.34,177.33,8.79089688]
[1752921448035,8.6958,177.34,177.33,8.79089688]
[1752921448236,10.1062267,177.34,177.33,8.79089688]
[1752921449131,10.1062267,177.34,177.33,8.78481635]
[1752921455340,10.1062267,177.34,177.33,13.22216347]
[1752921457842,1.4104267,177.34,177.33,13.22216347]
[1752921458044,5.6354,177.35,177.34,3.19]
[1752921458238,10.1158267,177.35,177.34,8.81891651]
[1752921458437,10.1158267,177.35,177.34,13.25436233]
[1752921460443,8.7054,177.35,177.34,13.25436233]
[1752921464848,10.1158267,177.35,177.34,13.25436233]
[1752921465751,10.1158267,177.35,177.34,13.26197389]
[1752921467451,8.7054,177.35,177.34,13.26197389]
[1752921467652,10.1158267,177.35,177.34,13.26197389]
[1752921467848,8.7054,177.35,177.34,13.26197389]
[1752921468151,10.1158267,177.35,177.34,13.26197389]
[1752921468652,3.07,177.35,177.34,18.89777389]
[1752921468851,3.07,177.35,177.34,15.70777389]
[1752921469353,3.07,177.35,177.34,18.89777389]
[1752921471455,3.07,177.35,177.34,13.26124582]
[1752921471657,3.07,177.35,177.34,18.89573514]
[1752921472156,4.4804267,177.36,177.35,3.19]
[1752921472351,4.4804267,177.36,177.35,13.26248784]
[1752921472551,10.1155267,177.36,177.35,13.26248784]
[1752921475058,3.07,177.33,177.31,3.19]
[1752921475254,16.92,177.46,177.31,3.19]
[1752921475255,3.07,177.41,177.31,3.19]
[1752921475455,4.4804267,177.36,177.33,3.19]
[1752921475659,10.1157267,177.36,177.33,8.826]
[1752921475953,3.07,177.35,177.34,3.19]
[1752921476154,1.4104267,177.34,177.33,3.19]
[1752921476359,4.4804267,177.34,177.33,3.19]
[1752921478860,10.1162267,177.34,177.33,3.19]
[1752921479060,4.4804267,177.34,177.33,3.19]
[1752921482562,1.4104267,177.34,177.33,8.8261]
[1752921482764,0.03599173,177.35,177.33,3.19]
[1752921483368,0.03599173,177.35,177.34,5.6358]
[1752921483560,3.07,177.37,177.34,3.19]
[1752921483760,3.07,177.37,177.35,3.19]
[1752921484261,3.07,177.37,177.36,8.8251]
[1752921484456,4.4804267,177.38,177.33,3.19]
[1752921484660,4.4804267,177.38,177.36,5.6349]
[1752921484864,4.4804267,177.38,177.37,3.19]
[1752921486066,4.4804267,177.38,177.37,8.8248]
[1752921486765,4.5504267,177.4,177.39,8.6642]
[1752921488262,1.4104267,177.4,177.39,8.6642]
[1752921488463,3.14,177.41,177.4,8.6638]
[1752921488669,4.5504267,177.41,177.4,8.6638]
[1752921489468,3.14,177.4,177.39,0.03562232]
[1752921489668,4.5504267,177.4,177.39,0.03562232]
[1752921489869,4.5504267,177.4,177.39,3.06562232]
[1752921490466,10.1842267,177.4,177.39,3.06562232]
[1752921491370,4.5504267,177.4,177.39,3.06562232]
[1752921491766,4.5504267,177.4,177.39,8.69982232]
[1752921491965,1.4104267,177.4,177.39,8.69982232]
[1752921492166,4.5504267,177.41,177.39,13.1041371]
[1752921492366,4.5504267,177.41,177.4,3.03]
[1752921494669,10.1839267,177.41,177.4,3.03]
[1752921494969,7.0439267,177.41,177.39,3.06562232]
[1752921495167,4.5504267,177.4,177.39,3.06562232]
[1752921495571,4.5504267,177.4,177.39,8.69982232]
[1752921496570,4.5504267,177.4,177.39,3.06562232]
[1752921497269,10.1842267,177.4,177.39,0.03562232]
[1752921497767,10.1842267,177.4,177.39,3.06562232]
[1752921501767,10.1842267,177.4,177.39,0.03562232]
[1752921502268,10.1842267,177.4,177.39,3.06562232]
[1752921503576,4.5504267,177.4,177.39,3.06562232]
[1752921507874,4.5504267,177.4,177.39,8.69982232]
[1752921513783,3.14,177.4,177.39,8.69982232]
[1752921514483,4.5504267,177.41,177.4,3.03]
[1752921514984,4.5504267,177.41,177.4,8.6638]
[1752921516585,3.14,177.41,177.4,8.6638]
[1752921518284,4.5504267,177.41,177.4,8.6638]
[1752921523893,3.14,177.41,177.4,8.6638]
[1752921524379,3.14,177.41,177.4,13.07177264]
[1752921528289,4.5504267,177.41,177.4,13.07177264]
[1752921531886,3.26,177.43,177.4,4.40797264]
[1752921532189,4.6704267,177.43,177.41,3.16]
[1752921532390,4.6704267,177.44,177.42,4.41306817]
[1752921532590,4.6704267,177.44,177.43,8.7929]
[1752921536291,4.6704267,177.44,177.43,3.16]
[1752921536493,4.6704267,177.44,177.12,31.60597586]
[1752921536494,3.26,177.43,177.42,0.03641118]
[1752921536790,7.0436267,177.43,177.4,8.7937]